[Event "Snabb-SM för veteraner, 50+ 2019"]
[Site "Schackcentrum, Vegagatan 20, Gothenburg, Sweden"]
[Date "2019.10.06"]
[Round "10.7"]
[White "Wesslen, Ulf"]
[Black "Borvander, Tom"]
[Result "1-0"]
[TimeControl "15 minutes + 10 seconds per move from move one"]
[WhiteFideId "1705199"]
[BlackFideId "1707388"]
[WhiteElo "1971"]
[BlackElo "2066"]

1. d4 {[%clk 00:15:18]} {[%emt 00:00:02]} Nf6 {[%clk 00:15:19]} {[%emt
00:00:01]} 2. c4 {[%clk 00:15:23]} {[%emt 00:00:04]} g6 {[%clk 00:15:28]}
{[%emt 00:00:01]} 3. Nc3 {[%clk 00:15:30]} {[%emt 00:00:03]} Bg7 {[%clk
00:15:37]} 4. e4 {[%clk 00:15:33]} {[%emt 00:00:07]} d6 {[%clk 00:15:46]} 5. f3
{[%clk 00:15:26]} {[%emt 00:00:17]} O-O {[%clk 00:15:53]} {[%emt 00:00:03]} 6.
Nge2 {[%clk 00:15:26]} {[%emt 00:00:09]} c5 {[%clk 00:15:34]} {[%emt 00:00:30]}
7. Be3 {[%clk 00:14:36]} {[%emt 00:01:00]} Nc6 {[%clk 00:14:53]} {[%emt
00:00:52]} 8. Qd2 {[%clk 00:14:00]} {[%emt 00:00:45]} Qa5 {[%clk 00:14:05]}
{[%emt 00:00:59]} 9. d5 {[%clk 00:12:36]} {[%emt 00:01:33]} Ne5 {[%clk
00:14:07]} {[%emt 00:00:07]} 10. Ng3 {[%clk 00:12:32]} {[%emt 00:00:16]} h5
{[%clk 00:12:27]} {[%emt 00:01:49]} 11. Bg5 {[%clk 00:11:40]} {[%emt 00:01:02]}
Re8 {[%clk 00:11:43]} {[%emt 00:00:55]} 12. f4 {[%clk 00:10:23]} {[%emt
00:01:26]} Ned7 {[%clk 00:11:34]} {[%emt 00:00:18]} 13. Bd3 {[%clk 00:09:22]}
{[%emt 00:01:12]} Nh7 {[%clk 00:14:44]} {[%emt 00:00:13]} 14. Bh4 {[%clk
00:08:43]} {[%emt 00:00:49]} a6 {[%clk 00:11:26]} {[%emt 00:00:16]} 15. O-O
{[%clk 00:08:23]} {[%emt 00:00:29]} Rb8 {[%clk 00:11:24]} {[%emt 00:00:12]} 16.
e5 {[%clk 00:07:34]} {[%emt 00:00:59]} Ndf8 {[%clk 00:09:22]} {[%emt 00:02:12]}
17. f5 {[%clk 00:05:42]} {[%emt 00:02:02]} Bxe5 {[%clk 00:09:09]} {[%emt
00:00:24]} 18. fxg6 {[%clk 00:05:40]} {[%emt 00:00:11]} fxg6 {[%clk 00:09:07]}
{[%emt 00:00:12]} 19. Kh1 {[%clk 00:04:01]} {[%emt 00:01:49]} b5 {[%clk
00:09:01]} {[%emt 00:00:15]} 20. Qf2 {[%clk 00:03:45]} {[%emt 00:00:26]} Nf6
{[%clk 00:07:36]} {[%emt 00:01:35]} 21. Rae1 {[%clk 00:03:05]} {[%emt
00:00:51]} Bd4 {[%clk 00:07:18]} {[%emt 00:00:29]} 22. Qf4 {[%clk 00:02:50]}
{[%emt 00:00:24]} bxc4 {[%clk 00:05:19]} {[%emt 00:02:09]} 23. Bb1 {[%clk
00:02:04]} {[%emt 00:00:56]} Rxb2 {[%clk 00:02:42]} {[%emt 00:02:47]} 24. Nce4
{[%clk 00:01:56]} {[%emt 00:00:17]} N8h7 {[%clk 00:02:12]} {[%emt 00:00:40]} 25.
Nxf6+ {[%clk 00:01:58]} {[%emt 00:00:09]} Nxf6 {[%clk 00:02:05]} {[%emt
00:00:17]} 26. Bxg6 {[%clk 00:02:06]} {[%emt 00:00:02]} Rf8 {[%clk 00:01:21]}
{[%emt 00:00:55]} 27. Qg5 {[%clk 00:02:15]} Qd2 {[%clk 00:01:13]} {[%emt
00:00:17]} 28. Bf7+ {[%clk 00:01:51]} {[%emt 00:00:35]} Kxf7 {[%clk 00:00:26]}
{[%emt 00:00:57]} 29. Qxh5+ {[%clk 00:01:43]} {[%emt 00:00:17]} Kg7 {[%clk
00:00:26]} {[%emt 00:00:05]} 30. Rxe7+ {[%clk 00:01:50]} {[%emt 00:00:08]} 1-0

[Event "Snabb-SM för veteraner, 50+ 2019"]
[Site "Schackcentrum, Vegagatan 20, Gothenburg, Sweden"]
[Date "2019.10.06"]
[Round "10.8"]
[White "Frisk, Hans"]
[Black "Gamback, Bjorn"]
[Result "1-0"]
[TimeControl "15 minutes + 10 seconds per move from move one"]
[BlackTitle "CM"]
[WhiteFideId "1708570"]
[BlackFideId "1703161"]
[WhiteElo "1948"]
[BlackElo "2120"]

1. Nf3 {[%clk 00:15:09]} {[%emt 00:00:10]} c5 {[%clk 00:15:15]} {[%emt
00:00:06]} 2. b3 {[%clk 00:15:06]} {[%emt 00:00:12]} Nc6 {[%clk 00:15:19]}
{[%emt 00:00:06]} 3. Bb2 {[%clk 00:15:09]} {[%emt 00:00:07]} d5 {[%clk
00:15:26]} {[%emt 00:00:03]} 4. e3 {[%clk 00:14:26]} {[%emt 00:00:53]} Nf6
{[%clk 00:15:11]} {[%emt 00:00:26]} 5. c4 {[%clk 00:13:49]} {[%emt 00:00:46]}
d4 {[%clk 00:14:55]} {[%emt 00:00:26]} 6. exd4 {[%clk 00:13:30]} {[%emt
00:00:29]} cxd4 {[%clk 00:15:03]} {[%emt 00:00:02]} 7. d3 {[%clk 00:13:19]}
{[%emt 00:00:19]} e5 {[%clk 00:14:21]} {[%emt 00:00:53]} 8. g3 {[%clk
00:13:08]} {[%emt 00:00:21]} Bf5 {[%clk 00:14:02]} {[%emt 00:00:30]} 9. Nh4
{[%clk 00:10:09]} {[%emt 00:03:08]} Bg4 {[%clk 00:13:54]} {[%emt 00:00:19]} 10.
Be2 {[%clk 00:09:05]} {[%emt 00:01:13]} Bh3 {[%clk 00:12:57]} {[%emt 00:01:07]}
11. Bf1 {[%clk 00:07:58]} {[%emt 00:01:16]} Qd7 {[%clk 00:11:54]} {[%emt
00:01:14]} 12. Bxh3 {[%clk 00:07:34]} {[%emt 00:00:34]} Qxh3 {[%clk 00:12:03]}
{[%emt 00:00:02]} 13. Qf3 {[%clk 00:07:22]} {[%emt 00:00:20]} Bb4+ {[%clk
00:10:30]} {[%emt 00:01:44]} 14. Nd2 {[%clk 00:07:16]} {[%emt 00:00:16]} e4
{[%clk 00:10:32]} {[%emt 00:00:09]} 15. dxe4 {[%clk 00:06:11]} {[%emt
00:01:14]} Ne5 {[%clk 00:10:41]} {[%emt 00:00:02]} 16. Qe2 {[%clk 00:05:29]}
{[%emt 00:00:51]} g5 {[%clk 00:08:19]} {[%emt 00:02:33]} 17. Nf5 {[%clk
00:03:45]} {[%emt 00:01:54]} d3 {[%clk 00:07:53]} {[%emt 00:00:37]} 18. Qe3
{[%clk 00:03:46]} {[%emt 00:00:08]} Nfg4 {[%clk 00:07:59]} {[%emt 00:00:03]} 19.
Bxe5 {[%clk 00:01:24]} {[%emt 00:02:32]} Nxe3 {[%clk 00:08:05]} {[%emt
00:00:05]} 20. fxe3 {[%clk 00:01:32]} {[%emt 00:00:01]} Qg2 {[%clk 00:07:53]}
{[%emt 00:00:22]} 21. O-O-O {[%clk 00:01:40]} {[%emt 00:00:03]} Bxd2+ {[%clk
00:08:00]} {[%emt 00:00:03]} 22. Rxd2 {[%clk 00:01:48]} {[%emt 00:00:01]} Qxh1+
{[%clk 00:08:09]} {[%emt 00:00:01]} 23. Rd1 {[%clk 00:01:58]} Qxe4 {[%clk
00:08:11]} {[%emt 00:00:09]} 24. Nd6+ {[%clk 00:02:02]} {[%emt 00:00:06]} Kd7
{[%clk 00:08:19]} {[%emt 00:00:02]} 25. Nxe4 {[%clk 00:02:11]} {[%emt
00:00:01]} Rhd8 {[%clk 00:08:02]} {[%emt 00:00:27]} 26. Rxd3+ {[%clk 00:02:13]}
{[%emt 00:00:07]} Ke6 {[%clk 00:08:09]} {[%emt 00:00:03]} 27. Rxd8 {[%clk
00:00:50]} {[%emt 00:01:33]} Rxd8 {[%clk 00:08:18]} {[%emt 00:00:02]} 28. Bd4
{[%clk 00:00:54]} {[%emt 00:00:05]} Kf5 {[%clk 00:08:10]} {[%emt 00:00:19]} 29.
Nc5 {[%clk 00:00:51]} {[%emt 00:00:12]} b6 {[%clk 00:08:16]} {[%emt 00:00:05]}
30. Nd3 {[%clk 00:00:47]} {[%emt 00:00:13]} Ke4 {[%clk 00:08:24]} {[%emt
00:00:02]} 31. Kd2 {[%clk 00:00:55]} {[%emt 00:00:03]} h6 {[%clk 00:08:23]}
{[%emt 00:00:11]} 32. Ke2 {[%clk 00:01:02]} {[%emt 00:00:02]} Kf5 {[%clk
00:08:14]} {[%emt 00:00:19]} 33. h3 {[%clk 00:01:04]} {[%emt 00:00:08]} h5
{[%clk 00:08:23]} {[%emt 00:00:02]} 34. Ne5 {[%clk 00:00:56]} {[%emt 00:00:17]}
f6 {[%clk 00:07:46]} {[%emt 00:00:47]} 35. Nc6 {[%clk 00:00:57]} {[%emt
00:00:09]} Rd7 {[%clk 00:07:56]} 36. Kd3 {[%clk 00:00:58]} {[%emt 00:00:08]} g4
{[%clk 00:07:51]} {[%emt 00:00:15]} 37. h4 {[%clk 00:01:04]} {[%emt 00:00:04]}
Ke6 {[%clk 00:06:17]} {[%emt 00:01:44]} 38. b4 {[%clk 00:01:08]} {[%emt
00:00:06]} Kd6 {[%clk 00:05:51]} {[%emt 00:00:37]} 39. b5 {[%clk 00:01:12]}
{[%emt 00:00:06]} f5 {[%clk 00:05:39]} {[%emt 00:00:21]} 40. a4 {[%clk
00:01:01]} {[%emt 00:00:21]} Ke6 {[%clk 00:05:35]} {[%emt 00:00:15]} 41. a5
{[%clk 00:01:02]} {[%emt 00:00:09]} Kd6 {[%clk 00:04:47]} {[%emt 00:00:58]} 42.
axb6 {[%clk 00:00:54]} {[%emt 00:00:18]} axb6 {[%clk 00:04:57]} 43. Bxb6 {[%clk
00:00:36]} {[%emt 00:00:29]} Rf7 {[%clk 00:04:49]} {[%emt 00:00:18]} 44. Bd4
{[%clk 00:00:34]} {[%emt 00:00:11]} Rf8 {[%clk 00:04:52]} {[%emt 00:00:08]} 45.
Ne5 {[%clk 00:00:32]} {[%emt 00:00:11]} Ra8 {[%clk 00:04:55]} {[%emt 00:00:07]}
46. Kc3 {[%clk 00:00:35]} {[%emt 00:00:07]} Ra2 {[%clk 00:04:37]} {[%emt
00:00:28]} 47. Nf7+ {[%clk 00:00:29]} {[%emt 00:00:16]} Ke6 {[%clk 00:04:15]}
{[%emt 00:00:33]} 48. Nd8+ {[%clk 00:00:30]} {[%emt 00:00:09]} Kd7 {[%clk
00:04:22]} {[%emt 00:00:03]} 49. Nc6 {[%clk 00:00:32]} {[%emt 00:00:07]} Kc7
{[%clk 00:04:20]} {[%emt 00:00:12]} 50. c5 {[%clk 00:00:27]} {[%emt 00:00:15]}
Kb7 {[%clk 00:04:29]} {[%emt 00:00:02]} 51. Kb4 {[%clk 00:00:27]} {[%emt
00:00:10]} Rg2 {[%clk 00:04:18]} {[%emt 00:00:20]} 52. Be5 {[%clk 00:00:32]}
{[%emt 00:00:05]} Re2 {[%clk 00:04:27]} {[%emt 00:00:02]} 53. Bf4 {[%clk
00:00:37]} {[%emt 00:00:04]} Rb2+ {[%clk 00:04:36]} {[%emt 00:00:01]} 54. Kc4
{[%clk 00:00:38]} {[%emt 00:00:08]} Rd2 {[%clk 00:04:26]} {[%emt 00:00:21]} 55.
Nd4 {[%clk 00:00:44]} {[%emt 00:00:04]} Rd1 {[%clk 00:04:28]} {[%emt 00:00:09]}
56. Nxf5 {[%clk 00:00:48]} {[%emt 00:00:05]} Rc1+ {[%clk 00:04:36]} {[%emt
00:00:02]} 57. Kd5 {[%clk 00:00:53]} {[%emt 00:00:05]} Rb1 {[%clk 00:04:44]}
{[%emt 00:00:02]} 58. b6 {[%clk 00:00:54]} {[%emt 00:00:09]} Rd1+ {[%clk
00:04:52]} {[%emt 00:00:02]} 59. Nd4 {[%clk 00:00:58]} {[%emt 00:00:07]} Rc1
{[%clk 00:04:49]} {[%emt 00:00:13]} 60. Kd6 {[%clk 00:00:56]} {[%emt 00:00:11]}
Rc4 {[%clk 00:04:48]} {[%emt 00:00:11]} 61. c6+ {[%clk 00:00:35]} {[%emt
00:00:32]} Kxb6 {[%clk 00:04:56]} {[%emt 00:00:02]} 62. Kd7 {[%clk 00:00:43]}
{[%emt 00:00:01]} Kc5 {[%clk 00:04:10]} {[%emt 00:00:56]} 63. c7 {[%clk
00:00:46]} {[%emt 00:00:07]} Kd5 {[%clk 00:04:20]} 64. c8=Q {[%clk 00:00:47]}
{[%emt 00:00:08]} Rxc8 {[%clk 00:04:28]} {[%emt 00:00:02]} 65. Kxc8 {[%clk
00:00:55]} {[%emt 00:00:02]} Ke4 {[%clk 00:04:37]} {[%emt 00:00:01]} 66. Kd7
{[%clk 00:01:01]} {[%emt 00:00:04]} Kd5 {[%clk 00:04:46]} {[%emt 00:00:02]} 67.
Ke7 {[%clk 00:01:07]} {[%emt 00:00:02]} Ke4 {[%clk 00:04:55]} {[%emt 00:00:02]}
68. Kf6 {[%clk 00:01:16]} {[%emt 00:00:01]} Kd3 {[%clk 00:05:04]} {[%emt
00:00:01]} 69. Kg5 {[%clk 00:01:24]} {[%emt 00:00:02]} Ke4 {[%clk 00:05:13]} 70.
Kxh5 {[%emt 00:00:03]} Kd5 71. Kg6 {[%clk 00:01:38]} {[%emt 00:00:02]} Kc5
{[%clk 00:05:31]} {[%emt 00:00:02]} 72. h5 {[%clk 00:01:46]} {[%emt 00:00:02]}
Kd5 {[%clk 00:05:41]} 73. h6 {[%emt 00:00:02]} 1-0

[Event "Snabb-SM för veteraner, 50+ 2019"]
[Site "Schackcentrum, Vegagatan 20, Gothenburg, Sweden"]
[Date "2019.10.06"]
[Round "10.9"]
[White "Sigeman, Johan"]
[Black "Andersson, Kjell-Ake"]
[Result "1-0"]
[TimeControl "15 minutes + 10 seconds per move from move one"]
[WhiteFideId "1705601"]
[BlackFideId "1713825"]
[WhiteElo "2100"]
[BlackElo "1854"]

1. c4 {[%clk 00:15:18]} {[%emt 00:00:01]} Nf6 {[%clk 00:15:00]} {[%emt
00:00:20]} 2. Nc3 {[%clk 00:15:26]} {[%emt 00:00:03]} g6 {[%clk 00:15:06]}
{[%emt 00:00:04]} 3. g3 {[%clk 00:15:15]} {[%emt 00:00:20]} Bg7 {[%clk
00:15:12]} {[%emt 00:00:03]} 4. Bg2 {[%clk 00:15:24]} {[%emt 00:00:02]} O-O
{[%clk 00:15:16]} {[%emt 00:00:06]} 5. Nf3 {[%clk 00:15:29]} {[%emt 00:00:05]}
d6 {[%clk 00:15:19]} {[%emt 00:00:06]} 6. d4 {[%clk 00:15:33]} {[%emt
00:00:06]} Nc6 {[%clk 00:15:12]} {[%emt 00:00:18]} 7. O-O {[%clk 00:15:36]}
{[%emt 00:00:06]} a6 {[%clk 00:15:04]} {[%emt 00:00:19]} 8. b3 {[%clk
00:15:08]} {[%emt 00:00:38]} Rb8 {[%clk 00:14:29]} {[%emt 00:00:43]} 9. Nd5
{[%clk 00:12:34]} {[%emt 00:02:45]} b5 {[%clk 00:11:11]} {[%emt 00:03:28]} 10.
Nxf6+ {[%clk 00:11:54]} {[%emt 00:00:51]} Bxf6 {[%clk 00:11:17]} {[%emt
00:00:04]} 11. cxb5 {[%clk 00:11:23]} {[%emt 00:00:41]} axb5 {[%clk 00:11:03]}
{[%emt 00:00:24]} 12. Bh6 {[%clk 00:11:22]} {[%emt 00:00:10]} Re8 {[%clk
00:10:27]} {[%emt 00:00:46]} 13. Rc1 {[%clk 00:11:02]} {[%emt 00:00:30]} Bd7
{[%clk 00:08:56]} {[%emt 00:01:39]} 14. d5 {[%clk 00:09:58]} {[%emt 00:01:16]}
Na7 {[%clk 00:06:27]} {[%emt 00:02:38]} 15. Be3 {[%clk 00:08:45]} {[%emt
00:01:23]} Rb7 {[%clk 00:05:51]} {[%emt 00:00:47]} 16. Bd4 {[%clk 00:08:36]}
{[%emt 00:00:19]} c5 {[%clk 00:05:14]} {[%emt 00:00:46]} 17. dxc6 {[%clk
00:08:27]} {[%emt 00:00:19]} Nxc6 {[%clk 00:05:14]} {[%emt 00:00:10]} 18. Bxf6
{[%clk 00:08:30]} {[%emt 00:00:08]} exf6 {[%clk 00:05:21]} {[%emt 00:00:04]} 19.
Qxd6 {[%clk 00:08:28]} {[%emt 00:00:12]} Re6 {[%clk 00:04:27]} {[%emt
00:01:03]} 20. Qd2 {[%clk 00:08:23]} {[%emt 00:00:15]} Ra7 {[%clk 00:04:09]}
{[%emt 00:00:28]} 21. Rfd1 {[%clk 00:07:24]} {[%emt 00:01:09]} Qe7 {[%clk
00:03:58]} {[%emt 00:00:21]} 22. Nd4 {[%clk 00:06:45]} {[%emt 00:00:50]} Nxd4
{[%clk 00:03:08]} {[%emt 00:01:00]} 23. Qxd4 {[%clk 00:06:54]} Qa3 {[%clk
00:03:01]} {[%emt 00:00:17]} 24. Rc2 {[%clk 00:06:35]} {[%emt 00:00:30]} Qa6
{[%clk 00:01:47]} {[%emt 00:01:25]} 25. e3 {[%clk 00:05:48]} {[%emt 00:00:56]}
Be8 {[%clk 00:01:36]} {[%emt 00:00:21]} 26. Qd8 {[%clk 00:05:08]} {[%emt
00:00:50]} Kg7 {[%clk 00:01:25]} {[%emt 00:00:21]} 27. Bf1 {[%clk 00:04:58]}
{[%emt 00:00:20]} Qa5 {[%clk 00:01:14]} {[%emt 00:00:21]} 28. Qb8 {[%clk
00:04:14]} {[%emt 00:00:53]} Qb6 {[%emt 00:00:16]} 29. Rd8 {[%clk 00:03:50]}
{[%emt 00:00:34]} Qxb8 {[%clk 00:01:12]} {[%emt 00:00:07]} 30. Rxb8 {[%clk
00:03:59]} Bc6 {[%clk 00:01:14]} {[%emt 00:00:08]} 31. Bxb5 {[%clk 00:03:43]}
{[%emt 00:00:26]} Bxb5 {[%clk 00:01:21]} {[%emt 00:00:03]} 32. Rxb5 {[%clk
00:03:52]} Rd6 {[%clk 00:01:26]} {[%emt 00:00:05]} 33. a4 {[%clk 00:03:54]}
{[%emt 00:00:08]} Rd1+ {[%clk 00:01:32]} {[%emt 00:00:03]} 34. Kg2 {[%clk
00:04:03]} {[%emt 00:00:02]} Rad7 {[%clk 00:01:36]} {[%emt 00:00:06]} 35. a5
{[%clk 00:04:08]} {[%emt 00:00:05]} g5 {[%clk 00:01:40]} {[%emt 00:00:06]} 36.
b4 {[%clk 00:03:56]} {[%emt 00:00:21]} g4 {[%clk 00:01:46]} {[%emt 00:00:04]}
37. Rc4 {[%clk 00:03:53]} {[%emt 00:00:14]} Rb1 {[%clk 00:01:46]} {[%emt
00:00:10]} 38. Rxg4+ {[%clk 00:04:00]} {[%emt 00:00:03]} Kf8 {[%clk 00:01:55]}
39. Rb8+ {[%clk 00:03:54]} {[%emt 00:00:16]} 1-0

[Event "Snabb-SM för veteraner, 50+ 2019"]
[Site "Schackcentrum, Vegagatan 20, Gothenburg, Sweden"]
[Date "2019.10.06"]
[Round "10.10"]
[White "Karlsson, Ulf"]
[Black "Moller, Mikael"]
[Result "1/2-1/2"]
[TimeControl "15 minutes + 10 seconds per move from move one"]
[WhiteFideId "1721674"]
[BlackFideId "1738461"]
[WhiteElo "2035"]
[BlackElo "1826"]

1. e4 {[%clk 00:15:18]} c5 {[%clk 00:15:16]} {[%emt 00:00:05]} 2. Nc3 {[%clk
00:15:26]} {[%emt 00:00:02]} Nc6 {[%clk 00:15:23]} {[%emt 00:00:03]} 3. g3
{[%clk 00:15:27]} {[%emt 00:00:09]} g6 {[%clk 00:15:13]} {[%emt 00:00:20]} 4.
Bg2 {[%clk 00:15:35]} {[%emt 00:00:02]} Bg7 {[%clk 00:15:21]} {[%emt 00:00:02]}
5. d3 {[%clk 00:15:44]} d6 {[%clk 00:15:21]} {[%emt 00:00:10]} 6. f4 {[%clk
00:15:51]} {[%emt 00:00:02]} Nf6 {[%clk 00:15:12]} {[%emt 00:00:19]} 7. Nge2
{[%clk 00:15:59]} {[%emt 00:00:02]} a6 {[%clk 00:14:59]} {[%emt 00:00:23]} 8.
h3 {[%clk 00:16:06]} {[%emt 00:00:03]} Bd7 {[%clk 00:14:52]} {[%emt 00:00:08]}
9. g4 {[%clk 00:16:14]} {[%emt 00:00:02]} h6 {[%clk 00:14:57]} {[%emt
00:00:14]} 10. Ng3 {[%clk 00:15:57]} {[%emt 00:00:27]} b5 {[%clk 00:14:59]}
{[%emt 00:00:09]} 11. O-O {[%clk 00:16:02]} {[%emt 00:00:05]} b4 {[%clk
00:14:54]} {[%emt 00:00:16]} 12. Nce2 {[%clk 00:16:09]} {[%emt 00:00:02]} a5
{[%clk 00:15:02]} {[%emt 00:00:02]} 13. Rb1 {[%clk 00:14:41]} {[%emt 00:01:37]}
Rb8 {[%clk 00:14:46]} {[%emt 00:00:27]} 14. Be3 {[%clk 00:14:47]} {[%emt
00:00:04]} Qc7 {[%clk 00:14:40]} {[%emt 00:00:16]} 15. Qd2 {[%clk 00:14:17]}
{[%emt 00:00:39]} a4 {[%clk 00:13:38]} {[%emt 00:01:09]} 16. c3 {[%clk
00:11:32]} {[%emt 00:02:58]} O-O {[%clk 00:13:23]} {[%emt 00:00:24]} 17. g5
{[%clk 00:10:52]} {[%emt 00:00:50]} hxg5 {[%clk 00:13:27]} {[%emt 00:00:07]} 18.
f5 {[%clk 00:11:00]} {[%emt 00:00:01]} g4 {[%clk 00:11:23]} {[%emt 00:02:15]}
19. h4 {[%clk 00:10:56]} {[%emt 00:00:14]} bxc3 {[%clk 00:10:31]} {[%emt
00:01:02]} 20. bxc3 {[%clk 00:10:56]} {[%emt 00:00:11]} Rxb1 {[%clk 00:10:36]}
{[%emt 00:00:05]} 21. Rxb1 {[%clk 00:11:05]} Rb8 {[%clk 00:10:43]} {[%emt
00:00:02]} 22. Rxb8+ {[%clk 00:10:45]} {[%emt 00:00:29]} Qxb8 {[%clk 00:10:50]}
{[%emt 00:00:04]} 23. fxg6 {[%clk 00:10:45]} {[%emt 00:00:10]} fxg6 {[%clk
00:10:56]} {[%emt 00:00:04]} 24. Nf4 {[%clk 00:10:13]} {[%emt 00:00:42]} Kh7
{[%clk 00:10:50]} {[%emt 00:00:16]} 25. d4 {[%clk 00:09:07]} {[%emt 00:01:15]}
cxd4 {[%clk 00:10:41]} {[%emt 00:00:20]} 26. cxd4 {[%clk 00:09:16]} {[%emt
00:00:02]} Qb4 {[%clk 00:10:23]} {[%emt 00:00:27]} 27. Qf2 {[%clk 00:07:37]}
{[%emt 00:01:48]} a3 {[%clk 00:10:06]} {[%emt 00:00:29]} 28. Nd3 {[%clk
00:06:45]} {[%emt 00:01:02]} Qb1+ {[%clk 00:09:39]} {[%emt 00:00:36]} 29. Ne1
{[%clk 00:06:47]} {[%emt 00:00:07]} Nb4 {[%clk 00:09:22]} {[%emt 00:00:27]} 30.
Kh2 {[%clk 00:06:51]} {[%emt 00:00:07]} Qxa2 {[%clk 00:09:27]} {[%emt
00:00:05]} 31. Qxa2 {[%clk 00:06:39]} {[%emt 00:00:22]} Nxa2 {[%clk 00:09:35]}
{[%emt 00:00:02]} 32. Nc2 {[%clk 00:06:49]} Bb5 {[%clk 00:08:55]} {[%emt
00:00:50]} 33. Nxa3 {[%clk 00:06:46]} {[%emt 00:00:13]} Bd3 {[%clk 00:09:02]}
{[%emt 00:00:03]} 34. e5 {[%clk 00:06:06]} {[%emt 00:00:50]} dxe5 {[%clk
00:09:06]} {[%emt 00:00:06]} 35. dxe5 {[%clk 00:06:14]} {[%emt 00:00:02]} Nd7
{[%clk 00:08:56]} {[%emt 00:00:19]} 36. Be4 {[%clk 00:05:08]} {[%emt 00:01:17]}
Bxe4 {[%clk 00:08:50]} {[%emt 00:00:16]} 37. Nxe4 {[%clk 00:05:17]} {[%emt
00:00:01]} Bxe5+ {[%clk 00:08:46]} {[%emt 00:00:14]} 38. Kg2 {[%clk 00:05:24]}
{[%emt 00:00:02]} Nc3 {[%clk 00:08:36]} {[%emt 00:00:20]} 39. Ng5+ {[%clk
00:05:21]} {[%emt 00:00:13]} Kg7 {[%clk 00:08:26]} {[%emt 00:00:20]} 40. Nc4
{[%clk 00:05:26]} {[%emt 00:00:05]} Bf6 {[%clk 00:08:06]} {[%emt 00:00:31]} 41.
Kg3 {[%clk 00:05:28]} {[%emt 00:00:08]} Nd5 {[%clk 00:07:52]} {[%emt 00:00:24]}
42. Bd2 {[%clk 00:05:24]} {[%emt 00:00:14]} Ne5 {[%clk 00:07:40]} {[%emt
00:00:22]} 43. Nxe5 {[%clk 00:04:59]} {[%emt 00:00:36]} Bxe5+ {[%clk 00:07:47]}
{[%emt 00:00:02]} 1/2-1/2